[Event "Late-Titled-Tuesday-Blitz-February-06-2024"]
[Site "Chess.com"]
[Date "2024.02.06"]
[Round "6"]
[White "Atousa"]
[Black "Mikhail_Golubev"]
[Result "1/2-1/2"]
[WhiteElo "2483"]
[BlackElo "2659"]
[TimeControl "180+1"]
[EndTime "15:06:56 PST"]
[Termination "Game drawn by repetition"]

1. e4 {[%clk 0:02:55.3]} 1... c5 {[%clk 0:02:59.9]} 2. Nf3 {[%clk 0:02:55.4]}
2... d6 {[%clk 0:03:00.1]} 3. d4 {[%clk 0:02:56.1]} 3... Nf6 {[%clk 0:03:00]} 4.
Nc3 {[%clk 0:02:56.1]} 4... cxd4 {[%clk 0:03:00.1]} 5. Nxd4 {[%clk 0:02:57]}
5... g6 {[%clk 0:02:59.9]} 6. Be2 {[%clk 0:02:55.1]} 6... Bg7 {[%clk 0:02:59.6]}
7. O-O {[%clk 0:02:55.7]} 7... O-O {[%clk 0:02:59.7]} 8. Be3 {[%clk 0:02:56.4]}
8... Nc6 {[%clk 0:02:59.6]} 9. Qd2 {[%clk 0:02:56.2]} 9... Bd7 {[%clk
0:02:59.4]} 10. Rad1 {[%clk 0:02:55.1]} 10... Rc8 {[%clk 0:02:57.9]} 11. Nxc6
{[%clk 0:02:53.1]} 11... bxc6 {[%clk 0:02:53]} 12. f4 {[%clk 0:02:50.1]} 12...
Ng4 {[%clk 0:02:48.5]} 13. Bxg4 {[%clk 0:02:47.2]} 13... Bxg4 {[%clk 0:02:47.4]}
14. Rde1 {[%clk 0:02:48.1]} 14... Bd7 {[%clk 0:02:35.2]} 15. Kh1 {[%clk
0:02:40.8]} 15... Rb8 {[%clk 0:02:08.8]} 16. b3 {[%clk 0:02:29.6]} 16... Qa5
{[%clk 0:02:08.2]} 17. Ne2 {[%clk 0:02:05.2]} 17... Qxd2 {[%clk 0:02:01]} 18.
Bxd2 {[%clk 0:02:06.1]} 18... f5 {[%clk 0:01:52.9]} 19. Nc3 {[%clk 0:01:39.1]}
19... e5 {[%clk 0:01:44.1]} 20. h3 {[%clk 0:01:23.7]} 20... Rbe8 {[%clk
0:01:39.5]} 21. Rf3 {[%clk 0:00:54.9]} 21... exf4 {[%clk 0:00:46.7]} 22. Rxf4
{[%clk 0:00:54.6]} 22... Bxc3 {[%clk 0:00:36.6]} 23. Bxc3 {[%clk 0:00:54]} 23...
g5 {[%clk 0:00:32]} 24. Rff1 {[%clk 0:00:47.5]} 24... fxe4 {[%clk 0:00:30.9]}
25. Bf6 {[%clk 0:00:36.3]} 25... h6 {[%clk 0:00:27.2]} 26. b4 {[%clk 0:00:35.2]}
26... Re6 {[%clk 0:00:23.9]} 27. Bd4 {[%clk 0:00:34.7]} 27... Rxf1+ {[%clk
0:00:23.3]} 28. Rxf1 {[%clk 0:00:35.6]} 28... a6 {[%clk 0:00:23]} 29. Kg1 {[%clk
0:00:29]} 29... Be8 {[%clk 0:00:18.4]} 30. Kf2 {[%clk 0:00:28.8]} 30... Bf7
{[%clk 0:00:14.2]} 31. Ke3 {[%clk 0:00:28.9]} 31... Re7 {[%clk 0:00:13.4]} 32.
Rf6 {[%clk 0:00:26.1]} 32... Re6 {[%clk 0:00:12.5]} 33. Rf1 {[%clk 0:00:21.9]}
33... Re8 {[%clk 0:00:09.6]} 34. a4 {[%clk 0:00:21.4]} 34... Bd5 {[%clk
0:00:08.5]} 35. c3 {[%clk 0:00:18.8]} 35... Bc4 {[%clk 0:00:07.8]} 36. Rf6
{[%clk 0:00:18.6]} 36... Re6 {[%clk 0:00:07.9]} 37. Rxe6 {[%clk 0:00:17.7]}
37... Bxe6 {[%clk 0:00:08.8]} 38. a5 {[%clk 0:00:15.1]} 38... Bd5 {[%clk
0:00:08.3]} 39. Bf6 {[%clk 0:00:14.4]} 39... Kf7 {[%clk 0:00:08.2]} 40. Bd8
{[%clk 0:00:14.7]} 40... Ke6 {[%clk 0:00:07.6]} 41. Bc7 {[%clk 0:00:13.8]} 41...
Bc4 {[%clk 0:00:06.5]} 42. g3 {[%clk 0:00:11.7]} 42... d5 {[%clk 0:00:06.3]} 43.
h4 {[%clk 0:00:11.1]} 43... Bf1 {[%clk 0:00:05.9]} 44. hxg5 {[%clk 0:00:10.3]}
44... hxg5 {[%clk 0:00:06.8]} 45. Bd8 {[%clk 0:00:10.4]} 45... Kf5 {[%clk
0:00:06.8]} 46. Bc7 {[%clk 0:00:10.2]} 46... Kg4 {[%clk 0:00:06.8]} 47. Be5
{[%clk 0:00:09.7]} 47... Bb5 {[%clk 0:00:06.8]} 48. Bd6 {[%clk 0:00:08.9]} 48...
Kf5 {[%clk 0:00:06.7]} 49. Bc7 {[%clk 0:00:09.1]} 49... Kg4 {[%clk 0:00:06.6]}
50. Bd6 {[%clk 0:00:09.4]} 50... Bc4 {[%clk 0:00:06.8]} 51. Bc7 {[%clk
0:00:09.8]} 51... Bb5 {[%clk 0:00:06.9]} 52. Bd6 {[%clk 0:00:10.3]} 1/2-1/2

[Event "Late-Titled-Tuesday-Blitz-February-06-2024"]
[Site "Chess.com"]
[Date "2024.02.06"]
[Round "6"]
[White "koncheto"]
[Black "carloseduar100"]
[Result "1-0"]
[WhiteElo "2507"]
[BlackElo "2336"]
[TimeControl "180+1"]
[EndTime "15:06:57 PST"]
[Termination "koncheto won on time"]

1. e4 {[%clk 0:02:53.3]} 1... e6 {[%clk 0:02:59.8]} 2. d4 {[%clk 0:02:51.6]}
2... d5 {[%clk 0:03:00.7]} 3. Nd2 {[%clk 0:02:52.5]} 3... c5 {[%clk 0:02:55.7]}
4. exd5 {[%clk 0:02:52.6]} 4... Qxd5 {[%clk 0:02:55.6]} 5. Ngf3 {[%clk
0:02:52.9]} 5... Nc6 {[%clk 0:02:55.5]} 6. Bc4 {[%clk 0:02:53.8]} 6... Qd7
{[%clk 0:02:55.4]} 7. O-O {[%clk 0:02:53.4]} 7... cxd4 {[%clk 0:02:54.8]} 8. Nb3
{[%clk 0:02:53.7]} 8... Nf6 {[%clk 0:02:54.9]} 9. Nbxd4 {[%clk 0:02:53.9]} 9...
Nxd4 {[%clk 0:02:55]} 10. Nxd4 {[%clk 0:02:54.8]} 10... a6 {[%clk 0:02:55.3]}
11. c3 {[%clk 0:02:55.5]} 11... Bd6 {[%clk 0:02:54.3]} 12. Bd3 {[%clk
0:02:52.9]} 12... b5 {[%clk 0:02:51.5]} 13. Qf3 {[%clk 0:02:49.9]} 13... Bb7
{[%clk 0:02:50.9]} 14. Qh3 {[%clk 0:02:50.6]} 14... Qc7 {[%clk 0:02:22.6]} 15.
Bg5 {[%clk 0:02:39.4]} 15... h6 {[%clk 0:02:22.5]} 16. Rad1 {[%clk 0:02:38.1]}
16... O-O-O {[%clk 0:02:20]} 17. Be3 {[%clk 0:02:28.7]} 17... Kb8 {[%clk
0:02:11.4]} 18. Rd2 {[%clk 0:02:11.9]} 18... g5 {[%clk 0:02:09.9]} 19. Rfd1
{[%clk 0:02:10.5]} 19... Bf4 {[%clk 0:01:51.5]} 20. Bxf4 {[%clk 0:01:58.1]}
20... Qxf4 {[%clk 0:01:48.8]} 21. Bf1 {[%clk 0:01:55.2]} 21... h5 {[%clk
0:01:25.9]} 22. Nc6+ {[%clk 0:01:53.8]} 22... Bxc6 {[%clk 0:01:20.7]} 23. Rxd8+
{[%clk 0:01:53.9]} 23... Rxd8 {[%clk 0:01:21.6]} 24. Rxd8+ {[%clk 0:01:54.2]}
24... Kc7 {[%clk 0:01:22.4]} 25. Rd4 {[%clk 0:01:41.8]} 25... Ne4 {[%clk
0:01:08.5]} 26. Qe3 {[%clk 0:01:31.7]} 26... Qxe3 {[%clk 0:00:56.3]} 27. fxe3
{[%clk 0:01:32.6]} 27... f5 {[%clk 0:00:55.9]} 28. a4 {[%clk 0:01:00.9]} 28...
h4 {[%clk 0:00:48.9]} 29. axb5 {[%clk 0:01:00.4]} 29... axb5 {[%clk 0:00:49.8]}
30. Be2 {[%clk 0:00:49.6]} 30... g4 {[%clk 0:00:49.2]} 31. h3 {[%clk 0:00:45.1]}
31... gxh3 {[%clk 0:00:39.9]} 32. gxh3 {[%clk 0:00:45.5]} 32... e5 {[%clk
0:00:36.7]} 33. Rd1 {[%clk 0:00:44.4]} 33... Ng5 {[%clk 0:00:29.7]} 34. Kh2
{[%clk 0:00:43.4]} 34... f4 {[%clk 0:00:20.3]} 35. exf4 {[%clk 0:00:35.2]} 35...
exf4 {[%clk 0:00:21.2]} 36. Bg4 {[%clk 0:00:36.1]} 36... f3 {[%clk 0:00:18.6]}
37. Kg1 {[%clk 0:00:36.5]} 37... Kb6 {[%clk 0:00:09.6]} 38. Kf2 {[%clk
0:00:36.7]} 38... Kc5 {[%clk 0:00:09.7]} 39. Rd4 {[%clk 0:00:28.1]} 39... Bd5
{[%clk 0:00:09.7]} 40. Bd7 {[%clk 0:00:22.3]} 40... Ne4+ {[%clk 0:00:09.3]} 41.
Ke3 {[%clk 0:00:15]} 41... f2 {[%clk 0:00:06.6]} 42. Bxb5 {[%clk 0:00:15.2]}
42... Kxb5 {[%clk 0:00:01.1]} 43. Rxd5+ {[%clk 0:00:15.4]} 43... Kc4 {[%clk
0:00:01.7]} 44. Rf5 {[%clk 0:00:10.1]} 1-0

[Event "Late-Titled-Tuesday-Blitz-February-06-2024"]
[Site "Chess.com"]
[Date "2024.02.06"]
[Round "6"]
[White "Eloist"]
[Black "gurudub"]
[Result "1-0"]
[WhiteElo "2437"]
[BlackElo "2114"]
[TimeControl "180+1"]
[EndTime "15:06:57 PST"]
[Termination "Eloist won by resignation"]

1. e4 {[%clk 0:03:00.9]} 1... c5 {[%clk 0:02:59.5]} 2. Nf3 {[%clk 0:03:00.5]}
2... d6 {[%clk 0:03:00.1]} 3. Bb5+ {[%clk 0:02:59.7]} 3... Nd7 {[%clk
0:02:59.9]} 4. O-O {[%clk 0:02:59.2]} 4... Nf6 {[%clk 0:02:59]} 5. Re1 {[%clk
0:02:58.4]} 5... a6 {[%clk 0:02:59.5]} 6. Bf1 {[%clk 0:02:58]} 6... e6 {[%clk
0:02:58.2]} 7. d4 {[%clk 0:02:56.7]} 7... cxd4 {[%clk 0:02:53.9]} 8. Nxd4 {[%clk
0:02:57.2]} 8... Nc5 {[%clk 0:02:52.1]} 9. f3 {[%clk 0:02:51.8]} 9... Be7 {[%clk
0:02:50.5]} 10. c4 {[%clk 0:02:51.7]} 10... O-O {[%clk 0:02:49.4]} 11. Nc3
{[%clk 0:02:51.7]} 11... Qc7 {[%clk 0:02:42.7]} 12. Be3 {[%clk 0:02:45.9]} 12...
b6 {[%clk 0:02:40.9]} 13. Rc1 {[%clk 0:02:42.6]} 13... Bb7 {[%clk 0:02:40.9]}
14. b4 {[%clk 0:02:40.8]} 14... Ncd7 {[%clk 0:02:40.2]} 15. Nd5 {[%clk
0:02:33.8]} 15... exd5 {[%clk 0:02:33.3]} 16. cxd5 {[%clk 0:02:33.5]} 16... Qd8
{[%clk 0:02:28.1]} 17. Nc6 {[%clk 0:02:25.1]} 17... Qe8 {[%clk 0:02:05.7]} 18.
Nxe7+ {[%clk 0:02:14.8]} 18... Qxe7 {[%clk 0:02:05.4]} 19. Rc7 {[%clk
0:02:14.4]} 19... Rab8 {[%clk 0:01:55.3]} 20. Bxb6 {[%clk 0:02:00]} 20... Rfc8
{[%clk 0:01:39.9]} 21. Rxc8+ {[%clk 0:01:24.1]} 21... Rxc8 {[%clk 0:01:40.8]}
22. Bd4 {[%clk 0:01:15.3]} 22... Ne5 {[%clk 0:01:36.6]} 23. Qb3 {[%clk
0:01:06.2]} 23... Ng6 {[%clk 0:00:49.2]} 24. a4 {[%clk 0:01:05]} 24... Nxd5
{[%clk 0:00:43.1]} 25. Bc4 {[%clk 0:01:00.3]} 25... Ndf4 {[%clk 0:00:33.9]} 26.
g3 {[%clk 0:00:53.2]} 26... d5 {[%clk 0:00:32.1]} 27. Bf1 {[%clk 0:00:49.3]}
27... Ne6 {[%clk 0:00:23.7]} 28. exd5 {[%clk 0:00:46.7]} 28... Nxd4 {[%clk
0:00:23.8]} 29. Rxe7 {[%clk 0:00:44.6]} 29... Nxb3 {[%clk 0:00:24]} 30. Rxb7
{[%clk 0:00:43.4]} 30... Ne5 {[%clk 0:00:22]} 31. Bxa6 {[%clk 0:00:38.3]} 31...
Nxf3+ {[%clk 0:00:20.4]} 32. Kf2 {[%clk 0:00:37.8]} 32... Ne5 {[%clk 0:00:12.3]}
33. d6 {[%clk 0:00:36.8]} 33... Rd8 {[%clk 0:00:11]} 34. Bb5 {[%clk 0:00:30.5]}
34... g6 {[%clk 0:00:04.3]} 35. a5 {[%clk 0:00:27.1]} 35... Rxd6 {[%clk
0:00:03.3]} 36. a6 {[%clk 0:00:24.8]} 36... Rd2+ {[%clk 0:00:02.7]} 37. Ke3
{[%clk 0:00:23.6]} 37... Ra2 {[%clk 0:00:03]} 38. a7 {[%clk 0:00:22.9]} 38...
Kg7 {[%clk 0:00:02.1]} 39. Ke4 {[%clk 0:00:19.6]} 39... Ng4 {[%clk 0:00:01.9]}
40. Bc4 {[%clk 0:00:18.6]} 40... Nf6+ {[%clk 0:00:02.3]} 41. Ke3 {[%clk
0:00:15.3]} 41... Ra3 {[%clk 0:00:03]} 42. Bxb3 {[%clk 0:00:14.3]} 42... Rxb3+
{[%clk 0:00:03.9]} 43. Kd4 {[%clk 0:00:14.8]} 43... Ra3 {[%clk 0:00:04.8]} 44.
b5 {[%clk 0:00:15.1]} 44... Ne8 {[%clk 0:00:05.1]} 45. b6 {[%clk 0:00:14.8]}
45... Nd6 {[%clk 0:00:05.4]} 46. Rb8 {[%clk 0:00:14.6]} 46... Kf6 {[%clk
0:00:03.3]} 47. a8=Q {[%clk 0:00:11.9]} 47... Rxa8 {[%clk 0:00:03.9]} 48. Rxa8
{[%clk 0:00:12.2]} 48... Nf5+ {[%clk 0:00:01.9]} 49. Kc5 {[%clk 0:00:12.1]} 1-0

[Event "Late-Titled-Tuesday-Blitz-February-06-2024"]
[Site "Chess.com"]
[Date "2024.02.06"]
[Round "6"]
[White "Schattman"]
[Black "Mariia89"]
[Result "1/2-1/2"]
[WhiteElo "2380"]
[BlackElo "2193"]
[TimeControl "180+1"]
[EndTime "15:06:57 PST"]
[Termination "Game drawn by repetition"]

1. f4 {[%clk 0:03:00.9]} 1... c5 {[%clk 0:02:58.1]} 2. Nf3 {[%clk 0:02:58.7]}
2... Nc6 {[%clk 0:02:58.3]} 3. g3 {[%clk 0:02:58.5]} 3... d5 {[%clk 0:02:57.4]}
4. Bg2 {[%clk 0:02:58.9]} 4... Nf6 {[%clk 0:02:57.3]} 5. O-O {[%clk 0:02:58.3]}
5... e6 {[%clk 0:02:54.3]} 6. d3 {[%clk 0:02:58.6]} 6... Bd6 {[%clk 0:02:53.2]}
7. c3 {[%clk 0:02:56.5]} 7... e5 {[%clk 0:02:53.3]} 8. fxe5 {[%clk 0:02:53.1]}
8... Nxe5 {[%clk 0:02:53.3]} 9. Nxe5 {[%clk 0:02:51.9]} 9... Bxe5 {[%clk
0:02:53.4]} 10. d4 {[%clk 0:02:50.5]} 10... Bd6 {[%clk 0:02:50.8]} 11. Bg5
{[%clk 0:02:47.6]} 11... Be7 {[%clk 0:02:47.1]} 12. Bxf6 {[%clk 0:02:37.9]}
12... Bxf6 {[%clk 0:02:47.1]} 13. dxc5 {[%clk 0:02:37.9]} 13... Be6 {[%clk
0:02:44.3]} 14. Qa4+ {[%clk 0:02:31.5]} 14... Kf8 {[%clk 0:02:41.8]} 15. Nd2
{[%clk 0:02:14.1]} 15... h6 {[%clk 0:02:26.4]} 16. Qc2 {[%clk 0:02:07.8]} 16...
g6 {[%clk 0:02:16.2]} 17. Nf3 {[%clk 0:02:02.6]} 17... d4 {[%clk 0:01:40.5]} 18.
cxd4 {[%clk 0:01:54.4]} 18... Bxd4+ {[%clk 0:01:40.2]} 19. Nxd4 {[%clk
0:01:54.3]} 19... Qxd4+ {[%clk 0:01:41.1]} 20. Kh1 {[%clk 0:01:54.2]} 20... Kg7
{[%clk 0:01:30.6]} 21. Rad1 {[%clk 0:01:52.9]} 21... Qe5 {[%clk 0:01:26.3]} 22.
b3 {[%clk 0:01:35.9]} 22... Rac8 {[%clk 0:01:22.5]} 23. b4 {[%clk 0:01:28.9]}
23... b6 {[%clk 0:00:49.3]} 24. c6 {[%clk 0:01:24.7]} 24... h5 {[%clk
0:00:47.2]} 25. Rd3 {[%clk 0:00:52.8]} 25... Kh7 {[%clk 0:00:38.7]} 26. Qc3
{[%clk 0:00:40.3]} 26... Qxe2 {[%clk 0:00:28.7]} 27. a3 {[%clk 0:00:39.2]} 27...
Rhd8 {[%clk 0:00:20.3]} 28. Re3 {[%clk 0:00:38.3]} 28... Qg4 {[%clk 0:00:12.8]}
29. h3 {[%clk 0:00:34.1]} 29... Qc4 {[%clk 0:00:09.8]} 30. Qxc4 {[%clk
0:00:26.6]} 30... Bxc4 {[%clk 0:00:10.7]} 31. Rc1 {[%clk 0:00:23.4]} 31... Bd5
{[%clk 0:00:09.5]} 32. Bxd5 {[%clk 0:00:22.6]} 32... Rxd5 {[%clk 0:00:09.9]} 33.
Re7 {[%clk 0:00:22]} 33... Kg7 {[%clk 0:00:09.6]} 34. Rc3 {[%clk 0:00:20.4]}
34... Kf6 {[%clk 0:00:08.6]} 35. Rxa7 {[%clk 0:00:20.2]} 35... Rd2 {[%clk
0:00:07.3]} 36. Rf3+ {[%clk 0:00:17]} 36... Kg5 {[%clk 0:00:06.1]} 37. b5 {[%clk
0:00:16.9]} 37... Re8 {[%clk 0:00:05.7]} 38. Raxf7 {[%clk 0:00:15.4]} 38... Re1+
{[%clk 0:00:05.4]} 39. Rf1 {[%clk 0:00:14.1]} 39... Ree2 {[%clk 0:00:06]} 40.
h4+ {[%clk 0:00:14.4]} 40... Kh6 {[%clk 0:00:06.1]} 41. R1f4 {[%clk 0:00:11.6]}
41... Re1+ {[%clk 0:00:05.6]} 42. Rf1 {[%clk 0:00:10.9]} 42... Ree2 {[%clk
0:00:06.3]} 43. R1f3 {[%clk 0:00:10.3]} 43... Re1+ {[%clk 0:00:06.6]} 44. Rf1
{[%clk 0:00:09.6]} 44... Ree2 {[%clk 0:00:07]} 1/2-1/2

[Event "Late-Titled-Tuesday-Blitz-February-06-2024"]
[Site "Chess.com"]
[Date "2024.02.06"]
[Round "6"]
[White "Angry_Twin"]
[Black "rezamahdavi2008"]
[Result "0-1"]
[WhiteElo "3079"]
[BlackElo "2848"]
[TimeControl "180+1"]
[EndTime "15:07:05 PST"]
[Termination "rezamahdavi2008 won by checkmate"]

1. e4 {[%clk 0:03:00.9]} 1... e6 {[%clk 0:02:57.5]} 2. d4 {[%clk 0:03:01.1]}
2... d5 {[%clk 0:02:58.1]} 3. Nd2 {[%clk 0:03:01.9]} 3... c5 {[%clk 0:02:57.9]}
4. exd5 {[%clk 0:03:02.5]} 4... exd5 {[%clk 0:02:57.9]} 5. Ngf3 {[%clk
0:03:03.1]} 5... Nc6 {[%clk 0:02:58.6]} 6. Bb5 {[%clk 0:03:03.3]} 6... Bd6
{[%clk 0:02:59.3]} 7. O-O {[%clk 0:03:02.5]} 7... Ne7 {[%clk 0:02:59.6]} 8. dxc5
{[%clk 0:03:03.1]} 8... Bxc5 {[%clk 0:03:00.5]} 9. Nb3 {[%clk 0:03:03.7]} 9...
Bd6 {[%clk 0:03:01.4]} 10. c3 {[%clk 0:03:03]} 10... O-O {[%clk 0:02:59.6]} 11.
Nbd4 {[%clk 0:03:03.3]} 11... Bg4 {[%clk 0:02:57.4]} 12. Be2 {[%clk 0:03:01.9]}
12... a6 {[%clk 0:02:56.8]} 13. h3 {[%clk 0:03:01.6]} 13... Bh5 {[%clk
0:02:56.6]} 14. Be3 {[%clk 0:03:02.1]} 14... Re8 {[%clk 0:02:53.4]} 15. Re1
{[%clk 0:03:01]} 15... Bc7 {[%clk 0:02:52.3]} 16. Nxc6 {[%clk 0:02:09.1]} 16...
bxc6 {[%clk 0:02:43.6]} 17. Nd4 {[%clk 0:02:08.4]} 17... Bxe2 {[%clk 0:02:37.7]}
18. Rxe2 {[%clk 0:02:09.3]} 18... Qd6 {[%clk 0:02:35.9]} 19. Nf3 {[%clk
0:02:07]} 19... Nf5 {[%clk 0:02:34.2]} 20. Bd2 {[%clk 0:01:20.9]} 20... Re4
{[%clk 0:02:18.1]} 21. Be1 {[%clk 0:01:09.7]} 21... Rae8 {[%clk 0:02:05.5]} 22.
Rxe4 {[%clk 0:01:09.7]} 22... Rxe4 {[%clk 0:02:06.4]} 23. Qd3 {[%clk 0:01:04]}
23... h5 {[%clk 0:01:41.9]} 24. Rd1 {[%clk 0:01:01.4]} 24... Qe6 {[%clk
0:01:11.8]} 25. Kf1 {[%clk 0:00:59.7]} 25... Qc8 {[%clk 0:00:50.8]} 26. Bd2
{[%clk 0:00:55.7]} 26... Bb6 {[%clk 0:00:42.9]} 27. Re1 {[%clk 0:00:54.2]} 27...
Nd6 {[%clk 0:00:40.7]} 28. Rxe4 {[%clk 0:00:49.3]} 28... Nxe4 {[%clk 0:00:39.9]}
29. Be3 {[%clk 0:00:49.9]} 29... Bxe3 {[%clk 0:00:38.3]} 30. Qxe3 {[%clk
0:00:50.2]} 30... Qb7 {[%clk 0:00:36.7]} 31. Qe2 {[%clk 0:00:44.3]} 31... a5
{[%clk 0:00:37.1]} 32. Kg1 {[%clk 0:00:41.3]} 32... a4 {[%clk 0:00:35.3]} 33. a3
{[%clk 0:00:40]} 33... g6 {[%clk 0:00:34.4]} 34. Ne5 {[%clk 0:00:37.7]} 34... c5
{[%clk 0:00:33.7]} 35. Nd3 {[%clk 0:00:33.7]} 35... d4 {[%clk 0:00:31.4]} 36.
cxd4 {[%clk 0:00:31.3]} 36... cxd4 {[%clk 0:00:32.3]} 37. f3 {[%clk 0:00:30.5]}
37... Nd6 {[%clk 0:00:30.1]} 38. Qe5 {[%clk 0:00:27.8]} 38... Nf5 {[%clk
0:00:30.1]} 39. Nb4 {[%clk 0:00:25.5]} 39... Qc8 {[%clk 0:00:17.2]} 40. Qf4
{[%clk 0:00:18.2]} 40... Qd7 {[%clk 0:00:10]} 41. Nd3 {[%clk 0:00:13.5]} 41...
Qb5 {[%clk 0:00:08.9]} 42. Qe4 {[%clk 0:00:10]} 42... Qb3 {[%clk 0:00:08.6]} 43.
g4 {[%clk 0:00:07.1]} 43... hxg4 {[%clk 0:00:07.9]} 44. hxg4 {[%clk 0:00:07.6]}
44... Qd1+ {[%clk 0:00:08.5]} 45. Kf2 {[%clk 0:00:08.2]} 45... Ne3 {[%clk
0:00:07.2]} 46. Qxd4 {[%clk 0:00:03.5]} 46... Qd2+ {[%clk 0:00:07]} 47. Kg3
{[%clk 0:00:04.1]} 47... Nf1+ {[%clk 0:00:07.2]} 48. Kh4 {[%clk 0:00:04.5]}
48... Qh6# {[%clk 0:00:04.8]} 0-1

[Event "Late-Titled-Tuesday-Blitz-February-06-2024"]
[Site "Chess.com"]
[Date "2024.02.06"]
[Round "6"]
[White "jcmesafischer"]
[Black "Horokoskii"]
[Result "0-1"]
[WhiteElo "2342"]
[BlackElo "2162"]
[TimeControl "180+1"]
[EndTime "15:07:07 PST"]
[Termination "Horokoskii won on time"]

1. e4 {[%clk 0:02:57.5]} 1... e6 {[%clk 0:03:00.3]} 2. Qe2 {[%clk 0:02:57.5]}
2... e5 {[%clk 0:02:59.4]} 3. Nf3 {[%clk 0:02:57.2]} 3... Nc6 {[%clk 0:02:59.2]}
4. g3 {[%clk 0:02:57.3]} 4... Nf6 {[%clk 0:02:58.8]} 5. Bg2 {[%clk 0:02:56.5]}
5... h6 {[%clk 0:02:58.6]} 6. O-O {[%clk 0:02:56]} 6... Bc5 {[%clk 0:02:58.2]}
7. c3 {[%clk 0:02:39]} 7... O-O {[%clk 0:02:39.4]} 8. Nxe5 {[%clk 0:02:32.5]}
8... Nxe5 {[%clk 0:02:30.8]} 9. d4 {[%clk 0:02:30.1]} 9... Bd6 {[%clk
0:02:27.6]} 10. f4 {[%clk 0:02:14.2]} 10... Nc6 {[%clk 0:02:18.7]} 11. e5 {[%clk
0:01:44.9]} 11... Re8 {[%clk 0:02:18.4]} 12. Qf3 {[%clk 0:01:41.7]} 12... Bf8
{[%clk 0:02:16.3]} 13. exf6 {[%clk 0:01:40.6]} 13... Qxf6 {[%clk 0:02:17.2]} 14.
Nd2 {[%clk 0:01:40.2]} 14... d6 {[%clk 0:02:10.9]} 15. Ne4 {[%clk 0:01:35.6]}
15... Qe7 {[%clk 0:02:11.1]} 16. f5 {[%clk 0:01:32.6]} 16... f6 {[%clk
0:02:03.8]} 17. g4 {[%clk 0:01:32.2]} 17... a5 {[%clk 0:02:01.1]} 18. Ng3 {[%clk
0:01:32.1]} 18... a4 {[%clk 0:01:57.4]} 19. Nh5 {[%clk 0:01:31.7]} 19... Bd7
{[%clk 0:01:49]} 20. Qd5+ {[%clk 0:01:31]} 20... Kh7 {[%clk 0:01:46.4]} 21. Nf4
{[%clk 0:01:30.9]} 21... Nd8 {[%clk 0:01:28.8]} 22. Ng6 {[%clk 0:01:26.2]} 22...
Qe2 {[%clk 0:01:21.3]} 23. Bf3 {[%clk 0:01:24.4]} 23... Qc2 {[%clk 0:01:14.8]}
24. Rf2 {[%clk 0:01:08.4]} 24... Qd3 {[%clk 0:01:01.6]} 25. Nf4 {[%clk
0:01:05.8]} 25... Qb5 {[%clk 0:00:57.6]} 26. c4 {[%clk 0:01:00.9]} 26... Qxd5
{[%clk 0:00:56]} 27. cxd5 {[%clk 0:01:01.8]} 27... Nf7 {[%clk 0:00:53.7]} 28. h4
{[%clk 0:01:00]} 28... c6 {[%clk 0:00:50.6]} 29. Ne6 {[%clk 0:00:57.9]} 29...
cxd5 {[%clk 0:00:45]} 30. Bxd5 {[%clk 0:00:57.2]} 30... Bxe6 {[%clk 0:00:44.1]}
31. fxe6 {[%clk 0:00:55.8]} 31... Nd8 {[%clk 0:00:42.5]} 32. Re2 {[%clk
0:00:55.6]} 32... Nc6 {[%clk 0:00:42]} 33. Be3 {[%clk 0:00:51.4]} 33... Ne7
{[%clk 0:00:40]} 34. Be4+ {[%clk 0:00:50.4]} 34... Kg8 {[%clk 0:00:39]} 35. d5
{[%clk 0:00:48.5]} 35... Rec8 {[%clk 0:00:36.3]} 36. h5 {[%clk 0:00:47.6]} 36...
Rc4 {[%clk 0:00:33.3]} 37. Bf3 {[%clk 0:00:46.4]} 37... Rac8 {[%clk 0:00:29.9]}
38. Rd1 {[%clk 0:00:41.9]} 38... b5 {[%clk 0:00:26.9]} 39. Rd3 {[%clk
0:00:37.9]} 39... b4 {[%clk 0:00:23.9]} 40. b3 {[%clk 0:00:36.9]} 40... axb3
{[%clk 0:00:21.3]} 41. Rxb3 {[%clk 0:00:37.8]} 41... f5 {[%clk 0:00:16.1]} 42.
g5 {[%clk 0:00:30.4]} 42... f4 {[%clk 0:00:16.1]} 43. Bd2 {[%clk 0:00:23.1]}
43... hxg5 {[%clk 0:00:15.9]} 44. Rxb4 {[%clk 0:00:21.6]} 44... Rxb4 {[%clk
0:00:14.4]} 45. Bxb4 {[%clk 0:00:22.5]} 45... Nf5 {[%clk 0:00:13.8]} 46. Bg4
{[%clk 0:00:14]} 46... Ne3 {[%clk 0:00:12]} 47. Bf3 {[%clk 0:00:02.2]} 47... Rc4
{[%clk 0:00:10.1]} 48. Bd2 {[%clk 0:00:01.1]} 48... Nf5 {[%clk 0:00:05.5]} 49.
Bg4 {[%clk 0:00:01.1]} 49... Nd4 {[%clk 0:00:05.1]} 50. Re4 {[%clk 0:00:01.7]}
50... Be7 {[%clk 0:00:04.4]} 0-1